fUSD/lending_fUSD_20250519
["ID","MTS","AMOUNT","RATE_DAILY","PERIOD"]
[361617150,1747643441822,-471.08650507,0.00013698,2]
[361617151,1747643441831,-420.0,0.00013698,2]
[361617152,1747643441843,-420.0,0.00013698,2]
[361617153,1747643441851,-400.0,0.00013698,2]
[361617154,1747643441860,-420.0,0.00013698,2]
[361617155,1747643441869,-420.0,0.00013698,2]
[361617156,1747643441878,-400.0,0.00013698,2]
[361617157,1747643441887,-420.0,0.00013698,2]
[361617158,1747643441896,-420.0,0.00013698,2]
[361617159,1747643441906,-420.0,0.00013698,2]
[361617160,1747643441915,-605.17,0.00013698,2]
[361617161,1747643441924,-400.0,0.00013698,2]
[361617162,1747643441934,-420.0,0.00013698,2]
[361617163,1747643441943,-420.0,0.00013698,2]
[361617164,1747643441951,-420.0,0.00013698,2]
[361617165,1747643441961,-420.0,0.00013698,2]
[361617166,1747643441970,-400.0,0.00013698,2]
[361617167,1747643441978,-420.0,0.00013698,2]
[361617168,1747643441987,-420.0,0.00013698,2]
[361617169,1747643441996,-420.0,0.00013698,2]
[361617170,1747643442005,-420.0,0.00013698,2]
[361617171,1747643442015,-420.0,0.00013698,2]
[361617172,1747643442024,-520.93095857,0.00013698,2]
[361617173,1747643442033,-400.0,0.00013698,2]
[361617174,1747643442042,-420.0,0.00013698,2]
[361617175,1747643442051,-400.0,0.00013698,2]
[361617176,1747643442060,-420.0,0.00013698,2]
[361617177,1747643442070,-420.0,0.00013698,2]
[361617178,1747643442079,-400.0,0.00013698,2]
[361617179,1747643442088,-420.0,0.00013698,2]
[361617180,1747643442098,-360.0,0.00013698,2]
[361617181,1747643442107,-400.0,0.00013698,2]
[361617182,1747643442117,-420.0,0.00013698,2]
[361617183,1747643442392,-420.0,0.00013698,2]
[361617184,1747643442408,-780.64,0.00013698,2]
[361617185,1747643442418,-400.0,0.00013698,2]
[361617186,1747643442427,-477.97,0.00013698,2]
[361617187,1747643442438,-397.3076851,0.00013698,2]
[361617188,1747643442448,-400.0,0.00013698,2]
[361617189,1747643442457,-420.0,0.00013698,2]
[361617190,1747643442466,-400.0,0.00013698,2]
[361617191,1747643442476,-420.0,0.00013698,2]
[361617192,1747643442485,-420.0,0.00013698,2]
[361617193,1747643442495,-575.25,0.00013698,2]
[361617194,1747643442504,-400.34836304,0.00013698,2]
[361617195,1747643442513,-400.0,0.00013698,2]
[361617196,1747643442522,-420.0,0.00013698,2]
[361617197,1747643442534,-420.0,0.00013698,2]
[361617198,1747643442544,-400.0,0.00013698,2]
[361617199,1747643442554,-420.0,0.00013698,2]
[361617200,1747643442563,-420.0,0.00013698,2]
[361617201,1747643442572,-696.65,0.00013698,2]
[361617202,1747643442581,-400.0,0.00013698,2]
[361617203,1747643442590,-420.0,0.00013698,2]
[361617204,1747643442600,-420.0,0.00013698,2]
[361617205,1747643442614,-400.0,0.00013698,2]
[361617206,1747643442623,-420.0,0.00013698,2]
[361617207,1747643442633,-400.0,0.00013698,2]
[361617208,1747643442643,-420.0,0.00013698,2]
[361617209,1747643442653,-420.0,0.00013698,2]
[361617210,1747643442663,-420.0,0.00013698,2]
[361617211,1747643442672,-420.0,0.00013698,2]
[361617213,1747643442682,-420.0,0.00013698,2]
[361617214,1747643442692,-420.0,0.00013698,2]
[361617215,1747643442701,-420.0,0.00013698,2]
[361617216,1747643442711,-400.0,0.00013698,2]
[361617217,1747643442721,-369.65599488,0.00013698,2]
[361617218,1747643442730,-420.0,0.00013698,2]
[361617219,1747643442740,-420.0,0.00013698,2]
[361617220,1747643442749,-509.81,0.00013698,2]
[361617221,1747643442759,-226.17749463,0.00013698,2]
[361617222,1747643442770,-420.0,0.00013698,2]
[361617223,1747643442779,-706.23,0.00013698,2]
[361617225,1747643442788,-440.0,0.00013698,2]
[361617226,1747643442798,-420.0,0.00013698,2]
[361617227,1747643442807,-400.0,0.00013698,2]
[361617228,1747643442817,-420.0,0.00013698,2]
[361617229,1747643442826,-443.08900334,0.00013698,2]
[361617231,1747643442835,-470.67,0.00013698,2]
[361617233,1747643442845,-420.0,0.00013698,2]
[361617235,1747643442854,-507.32,0.00013698,2]
[361617237,1747643442863,-567.98,0.00013698,2]
[361617238,1747643442873,-400.0,0.00013698,2]
[361617240,1747643442882,-400.0,0.00013698,2]
[361617242,1747643442892,-500.0,0.00013698,2]
[361617243,1747643442901,-500.0,0.00013698,2]
[361617244,1747643442911,-420.0,0.00013698,2]
[361617245,1747643442920,-420.0,0.00013698,2]
[361617246,1747643442929,-420.0,0.00013698,2]
[361617247,1747643442939,-420.0,0.00013698,2]
[361617248,1747643442948,-420.0,0.00013698,2]
[361617249,1747643442957,-400.0,0.00013698,2]
[361617250,1747643442967,-420.0,0.00013698,2]
[361617251,1747643442976,-420.0,0.00013698,2]
[361617252,1747643442986,-501.07560789,0.00013698,2]
[361617253,1747643442995,-420.0,0.00013698,2]
[361617254,1747643443005,-420.0,0.00013698,2]
[361617255,1747643443015,-320.0,0.00013698,2]
[361617256,1747643443025,-743.43,0.00013698,2]
[361617257,1747643443034,-420.0,0.00013698,2]
[361617258,1747643443043,-420.0,0.00013698,2]
[361617259,1747643443053,-420.0,0.00013698,2]
[361617260,1747643443062,-420.0,0.00013698,2]
[361617261,1747643443072,-500.72672628,0.00013698,2]
[361617262,1747643443081,-1260.42,0.00013698,2]
[361617263,1747643443092,-366.61584979,0.00013698,2]
[361617264,1747643443102,-728.29,0.00013698,2]
[361617265,1747643443111,-400.0,0.00013698,2]
[361617266,1747643443121,-420.0,0.00013698,2]
[361617267,1747643443130,-400.82249255,0.00013698,2]
[361617268,1747643443139,-420.0,0.00013698,2]
[361617269,1747643443149,-626.94,0.00013698,2]
[361617270,1747643443158,-420.0,0.00013698,2]
[361617271,1747643443168,-400.20646479,0.00013698,2]
[361617272,1747643443177,-420.0,0.00013698,2]
[361617273,1747643443187,-420.0,0.00013698,2]
[361617274,1747643443198,-400.0,0.00013698,2]
[361617275,1747643443208,-314.95710586,0.00013698,2]
[361617276,1747643443220,-478.13552802,0.00013698,2]
[361617277,1747643443231,-420.0,0.00013698,2]
[361617278,1747643443240,-471.72,0.00013698,2]
[361617279,1747643443249,-582.2,0.00013698,2]
[361617280,1747643443258,-526.73,0.00013698,2]
[361617281,1747643443267,-420.0,0.00013698,2]
[361617282,1747643443277,-406.72939467,0.00013698,2]
[361617283,1747643443287,-420.0,0.00013698,2]
[361617284,1747643443297,-420.0,0.00013698,2]
[361617286,1747643443306,-579.93,0.00013698,2]
[361617287,1747643443316,-400.0,0.00013698,2]
[361617288,1747643443326,-500.0,0.00013698,2]
[361617289,1747643443336,-543.49,0.00013698,2]
[361617290,1747643443347,-420.0,0.00013698,2]
[361617291,1747643443356,-420.0,0.00013698,2]
[361617292,1747643443366,-400.0,0.00013698,2]
[361617293,1747643443375,-676.39,0.00013698,2]
[361617294,1747643443384,-370.09594008,0.00013698,2]
[361617295,1747643443394,-420.0,0.00013698,2]
[361617296,1747643443403,-420.0,0.00013698,2]
[361617297,1747643443412,-420.0,0.00013698,2]
[361617298,1747643443421,-420.0,0.00013698,2]
[361617299,1747643443430,-420.0,0.00013698,2]
[361617300,1747643443440,-420.0,0.00013698,2]
[361617301,1747643443450,-499.1809085,0.00013698,2]
[361617302,1747643443459,-715.2,0.00013698,2]
[361617303,1747643443468,-420.0,0.00013698,2]
[361617304,1747643443477,-400.316295,0.00013698,2]
[361617305,1747643443487,-420.0,0.00013698,2]
[361617306,1747643443496,-504.52907355,0.00013698,2]
[361617307,1747643443506,-420.0,0.00013698,2]
[361617308,1747643443516,-420.0,0.00013698,2]
[361617309,1747643443526,-400.0,0.00013698,2]
[361617310,1747643443535,-411.10412221,0.00013698,2]
[361617311,1747643443545,-420.0,0.00013698,2]
[361617312,1747643443554,-643.95,0.00013698,2]
[361617313,1747643443564,-420.0,0.00013698,2]
[361617314,1747643443573,-426.5,0.00013698,2]
[361617315,1747643443583,-596.42,0.00013698,2]
[361617316,1747643443593,-676.22,0.00013698,2]
[361617317,1747643443604,-384.3193465,0.00013698,2]
[361617318,1747643443615,-400.0,0.00013698,2]
[361617319,1747643443626,-1119.7,0.00013698,2]
[361617320,1747643443635,-740.82,0.00013698,2]
[361617321,1747643443645,-441.48,0.00013698,2]
[361617322,1747643443655,-420.0,0.00013698,2]
[361617323,1747643443664,-420.0,0.00013698,2]
[361617324,1747643443675,-448.37,0.00013698,2]
[361617325,1747643443685,-459.85,0.00013698,2]
[361617326,1747643443696,-919.67,0.00013698,2]
[361617327,1747643443707,-501.65,0.00013698,2]
[361617328,1747643443716,-420.0,0.00013698,2]
[361617329,1747643443725,-420.0,0.00013698,2]
[361617330,1747643443735,-400.0,0.00013698,2]
[361617331,1747643443744,-420.0,0.00013698,2]
[361617332,1747643443754,-521.57,0.00013698,2]
[361617333,1747643443764,-400.0,0.00013698,2]
[361617334,1747643443774,-442.52,0.00013698,2]
[361617335,1747643443784,-954.78,0.00013698,2]
[361617336,1747643443794,-400.0,0.00013698,2]
[361617337,1747643443803,-420.0,0.00013698,2]
[361617338,1747643443815,-436.4,0.00013698,2]
[361617339,1747643443831,-1968.24,0.00013698,2]
[361617340,1747643443840,-420.0,0.00013698,2]
[361617341,1747643443851,-420.0,0.00013698,2]
[361617342,1747643443861,-428.04,0.00013698,2]
[361617343,1747643443871,-360.0,0.00013698,2]
[361617344,1747643443880,-521.1,0.00013698,2]
[361617345,1747643443889,-360.0,0.00013698,2]
[361617346,1747643443899,-775.39,0.00013698,2]
[361617347,1747643443910,-2042.259457,0.00013698,2]
[361617348,1747643443920,-420.0,0.00013698,2]
[361617349,1747643443930,-1147.18,0.00013698,2]
[361617350,1747643443939,-715.34,0.00013698,2]
[361617351,1747643443949,-557.35,0.00013698,2]
[361617352,1747643443961,-420.0,0.00013698,2]
[361617353,1747643443971,-707.39,0.00013698,2]
[361617354,1747643443981,-420.0,0.00013698,2]
[361617355,1747643443991,-518.19,0.00013698,2]
[361617356,1747643444000,-420.0,0.00013698,2]
[361617357,1747643444009,-1033.02,0.00013698,2]
[361617358,1747643444018,-400.0,0.00013698,2]
[361617359,1747643444028,-420.0,0.00013698,2]
[361617360,1747643444037,-420.0,0.00013698,2]
[361617361,1747643444047,-420.0,0.00013698,2]
[361617362,1747643444057,-551.08,0.00013698,2]
[361617363,1747643444066,-420.0,0.00013698,2]
[361617364,1747643444076,-1093.62,0.00013698,2]
[361617365,1747643444085,-400.0,0.00013698,2]
[361617366,1747643444095,-420.0,0.00013698,2]
[361617367,1747643444104,-420.0,0.00013698,2]
[361617368,1747643444114,-476.26,0.00013698,2]
[361617369,1747643444124,-668.23,0.00013698,2]
[361617370,1747643444134,-420.0,0.00013698,2]
[361617371,1747643444144,-166.361386,0.00013698,2]
[361617372,1747643444154,-743.15,0.00013698,2]
[361617373,1747643444163,-400.0,0.00013698,2]
[361617374,1747643444173,-420.0,0.00013698,2]
[361617375,1747643444182,-420.0,0.00013698,2]
[361617376,1747643444192,-420.0,0.00013698,2]
[361617377,1747643444202,-1450.62,0.00013698,2]
[361617378,1747643444211,-420.0,0.00013698,2]
[361617379,1747643444222,-402.14418664,0.00013698,2]
[361617380,1747643444231,-1086.3,0.00013698,2]
[361617381,1747643444240,-1306.12,0.00013698,2]
[361617382,1747643444250,-5276.951293,0.00013698,2]
[361617383,1747643444259,-554.52,0.00013698,2]
[361617384,1747643444269,-420.0,0.00013698,2]
[361617385,1747643444278,-533.0,0.00013698,2]
[361617386,1747643444287,-420.0,0.00013698,2]
[361617387,1747643444297,-1473.773868,0.00013698,2]
[361617388,1747643444306,-420.0,0.00013698,2]
[361617389,1747643444316,-943.98,0.00013698,2]
[361617390,1747643444325,-702.75,0.00013698,2]
[361617391,1747643444335,-420.0,0.00013698,2]
[361617392,1747643444344,-700.21,0.00013698,2]
[361617393,1747643444354,-671.49,0.00013698,2]
[361617394,1747643444364,-420.0,0.00013698,2]
[361617395,1747643444373,-400.0,0.00013698,2]
[361617396,1747643444383,-420.0,0.00013698,2]
[361617397,1747643444392,-1361.03,0.00013698,2]
[361617398,1747643444401,-825.94,0.00013698,2]
[361617399,1747643444411,-420.0,0.00013698,2]
[361617400,1747643444420,-1084.7,0.00013698,2]
[361617401,1747643444429,-487.84,0.00013698,2]
[361617402,1747643444438,-420.0,0.00013698,2]
[361617403,1747643444447,-1133.99,0.00013698,2]
[361617404,1747643444456,-420.0,0.00013698,2]
[361617405,1747643444466,-420.0,0.00013698,2]
[361617406,1747643444475,-430.59,0.00013698,2]
[361617407,1747643444484,-420.0,0.00013698,2]
[361617408,1747643444493,-193.23648156,0.00013698,2]
[361617409,1747643444502,-400.0,0.00013698,2]
[361617410,1747643444511,-420.0,0.00013698,2]
[361617411,1747643444520,-420.0,0.00013698,2]
[361617412,1747643444529,-420.0,0.00013698,2]
[361617413,1747643444538,-420.0,0.00013698,2]
[361617414,1747643444547,-719.69,0.00013698,2]
[361617415,1747643444556,-471.07,0.00013698,2]
[361617416,1747643444566,-498.44,0.00013698,2]
[361617417,1747643444575,-420.0,0.00013698,2]
[361617418,1747643444584,-588.52,0.00013698,2]
[361617419,1747643444594,-616.89,0.00013698,2]
[361617420,1747643444603,-2121.19,0.00013698,2]
[361617421,1747643444613,-420.0,0.00013698,2]
[361617422,1747643444624,-709.56,0.00013698,2]
[361617423,1747643444634,-420.0,0.00013698,2]
[361617424,1747643444643,-525.6,0.00013698,2]
[361617425,1747643444654,-580.43,0.00013698,2]
[361617426,1747643444664,-420.0,0.00013698,2]
[361617427,1747643444674,-420.0,0.00013698,2]
[361617428,1747643444684,-420.0,0.00013698,2]
[361617429,1747643444694,-420.0,0.00013698,2]
[361617430,1747643444704,-1409.72,0.00013698,2]
[361617431,1747643444713,-420.0,0.00013698,2]
[361617432,1747643444723,-471.13,0.00013698,2]
[361617433,1747643444733,-667.69,0.00013698,2]
[361617434,1747643444742,-400.0,0.00013698,2]
[361617435,1747643444752,-454.3,0.00013698,2]
[361617436,1747643444761,-408.7651508,0.00013698,2]
[361617437,1747643444771,-420.0,0.00013698,2]
[361617438,1747643444781,-420.0,0.00013698,2]
[361617439,1747643444791,-400.0,0.00013698,2]
[361617440,1747643444800,-420.0,0.00013698,2]
[361617441,1747643444810,-420.0,0.00013698,2]
[361617442,1747643444819,-441.35,0.00013698,2]
[361617443,1747643444828,-400.81584776,0.00013698,2]
[361617444,1747643444838,-764.33,0.00013698,2]
[361617445,1747643444848,-420.0,0.00013698,2]
[361617446,1747643444857,-564.39,0.00013698,2]
[361617447,1747643444866,-420.0,0.00013698,2]
[361617448,1747643444877,-778.66,0.00013698,2]
[361617449,1747643444887,-400.0,0.00013698,2]
[361617450,1747643444896,-420.0,0.00013698,2]
[361617451,1747643444906,-420.0,0.00013698,2]
[361617452,1747643444915,-420.0,0.00013698,2]
[361617453,1747643444924,-420.0,0.00013698,2]
[361617454,1747643444934,-420.0,0.00013698,2]
[361617455,1747643444943,-536.04,0.00013698,2]
[361617456,1747643444953,-454.74,0.00013698,2]
[361617457,1747643444964,-896.22,0.00013698,2]
[361617458,1747643444973,-1064.6,0.00013698,2]
[361617459,1747643444982,-560.50663043,0.00013698,2]
[361617460,1747643444991,-420.0,0.00013698,2]
[361617461,1747643445000,-779.03,0.00013698,2]
[361617462,1747643445009,-524.94,0.00013698,2]
[361617463,1747643445019,-420.0,0.00013698,2]
[361617464,1747643445028,-420.0,0.00013698,2]
[361617465,1747643445040,-400.0,0.00013698,2]
[361617466,1747643445049,-420.0,0.00013698,2]
[361617467,1747643445059,-420.0,0.00013698,2]
[361617468,1747643445068,-420.0,0.00013698,2]
[361617469,1747643445078,-420.0,0.00013698,2]
[361617470,1747643445088,-573.24,0.00013698,2]
[361617471,1747643445099,-420.0,0.00013698,2]
[361617472,1747643445108,-340.0,0.00013698,2]
[361617473,1747643445118,-451.94,0.00013698,2]
[361617474,1747643445127,-420.0,0.00013698,2]
[361617475,1747643445137,-1119.01,0.00013698,2]
[361617476,1747643445146,-910.79,0.00013698,2]
[361617477,1747643445156,-420.0,0.00013698,2]
[361617478,1747643445167,-420.0,0.00013698,2]
[361617479,1747643445177,-567.5,0.00013698,2]
[361617480,1747643445186,-599.83,0.00013698,2]
[361617481,1747643445195,-546.7,0.00013698,2]
[361617482,1747643445204,-420.0,0.00013698,2]
[361617483,1747643445214,-420.0,0.00013698,2]
[361617484,1747643445223,-420.0,0.00013698,2]
[361617485,1747643445232,-500.54058704,0.00013698,2]
[361617486,1747643445242,-693.19,0.00013698,2]
[361617487,1747643445251,-420.0,0.00013698,2]
[361617488,1747643445260,-824.78,0.00013698,2]
[361617489,1747643445270,-458.24,0.00013698,2]
[361617490,1747643445279,-400.0,0.00013698,2]
[361617491,1747643445288,-420.0,0.00013698,2]
[361617492,1747643445298,-571.17,0.00013698,2]
[361617493,1747643445307,-420.0,0.00013698,2]
[361617494,1747643445316,-380.0,0.00013698,2]
[361617495,1747643445325,-1077.34,0.00013698,2]
[361617496,1747643445334,-748.64,0.00013698,2]
[361617497,1747643445344,-397.51341028,0.00013698,2]
[361617498,1747643445354,-420.0,0.00013698,2]
[361617499,1747643445363,-420.0,0.00013698,2]
[361617500,1747643445373,-431.79,0.00013698,2]
[361617501,1747643445383,-426.41,0.00013698,2]
[361617502,1747643445392,-869.14,0.00013698,2]
[361617503,1747643445402,-1415.38,0.00013698,2]
[361617504,1747643445411,-400.0,0.00013698,2]
[361617505,1747643445420,-420.0,0.00013698,2]
[361617506,1747643445430,-164.80463212,0.00013698,2]
[361617507,1747643445439,-420.0,0.00013698,2]
[361617508,1747643445448,-822.35,0.00013698,2]
[361617509,1747643445458,-420.0,0.00013698,2]
[361617510,1747643445467,-420.0,0.00013698,2]
[361617511,1747643445477,-2046.68,0.00013698,2]
[361617512,1747643445487,-420.0,0.00013698,2]
[361617513,1747643445498,-400.0,0.00013698,2]
[361617514,1747643445508,-524.83809563,0.00013698,2]
[361617515,1747643445518,-1087.59,0.00013698,2]
[361617516,1747643445527,-420.0,0.00013698,2]
[361617517,1747643445538,-420.0,0.00013698,2]
[361617518,1747643445548,-1345.2,0.00013698,2]
[361617519,1747643445557,-360.0,0.00013698,2]
[361617520,1747643445567,-420.0,0.00013698,2]
[361617522,1747643445576,-702.7,0.00013698,2]
[361617523,1747643445585,-420.0,0.00013698,2]
[361617524,1747643445595,-781.79,0.00013698,2]
[361617525,1747643445604,-553.01,0.00013698,2]
[361617526,1747643445616,-842.53,0.00013698,2]
[361617527,1747643445625,-420.0,0.00013698,2]
[361617528,1747643445634,-398.5878104,0.00013698,2]
[361617529,1747643445644,-420.0,0.00013698,2]
[361617530,1747643445654,-420.0,0.00013698,2]
[361617531,1747643445663,-1004.6,0.00013698,2]
[361617532,1747643445673,-420.0,0.00013698,2]
[361617533,1747643445682,-420.0,0.00013698,2]
[361617534,1747643445692,-456.77,0.00013698,2]
[361617535,1747643445701,-778.15,0.00013698,2]
[361617536,1747643445712,-2216.78,0.00013698,2]
[361617537,1747643445722,-400.0,0.00013698,2]
[361617538,1747643445731,-420.0,0.00013698,2]
[361617539,1747643445740,-714.15,0.00013698,2]
[361617540,1747643445750,-420.0,0.00013698,2]
[361617541,1747643445759,-979.13,0.00013698,2]
[361617542,1747643445769,-954.15,0.00013698,2]
[361617543,1747643445779,-381.75,0.00013698,2]
[361617544,1747643445789,-614.6,0.00013698,2]
[361617545,1747643445798,-420.0,0.00013698,2]
[361617546,1747643445808,-582.41,0.00013698,2]
[361617547,1747643445817,-420.0,0.00013698,2]
[361617548,1747643445826,-400.0,0.00013698,2]
[361617549,1747643445836,-310.045039,0.00013698,2]
[361617550,1747643445846,-420.0,0.00013698,2]
[361617551,1747643445858,-420.0,0.00013698,2]
[361617552,1747643445869,-626.47,0.00013698,2]
[361617553,1747643445879,-407.17600583,0.00013698,2]
[361617554,1747643445889,-420.0,0.00013698,2]
[361617555,1747643445900,-420.0,0.00013698,2]
[361617556,1747643445910,-420.0,0.00013698,2]
[361617557,1747643445920,-400.35985016,0.00013698,2]
[361617558,1747643445930,-420.0,0.00013698,2]
[361617559,1747643445939,-1210.2,0.00013698,2]
[361617560,1747643445950,-420.0,0.00013698,2]
[361617561,1747643445960,-470.64,0.00013698,2]
[361617562,1747643445970,-1134.21,0.00013698,2]
[361617563,1747643445979,-340.0,0.00013698,2]
[361617564,1747643445989,-400.0,0.00013698,2]
[361617565,1747643445998,-403.42169906,0.00013698,2]
[361617566,1747643446007,-420.0,0.00013698,2]
[361617567,1747643446017,-420.0,0.00013698,2]
[361617568,1747643446026,-404.96061157,0.00013698,2]
[361617569,1747643446035,-601.04,0.00013698,2]
[361617570,1747643446045,-420.0,0.00013698,2]
[361617571,1747643446055,-420.0,0.00013698,2]
[361617572,1747643446065,-992.79,0.00013698,2]
[361617573,1747643446075,-420.0,0.00013698,2]
[361617574,1747643446083,-400.0,0.00013698,2]
[361617575,1747643446093,-735.59,0.00013698,2]
[361617576,1747643446103,-400.0,0.00013698,2]
[361617577,1747643446113,-1664.36,0.00013698,2]
[361617578,1747643446123,-1213.81,0.00013698,2]
[361617579,1747643446133,-400.0,0.00013698,2]
[361617580,1747643446143,-420.0,0.00013698,2]
[361617581,1747643446153,-553.92,0.00013698,2]
[361617582,1747643446163,-962.68,0.00013698,2]
[361617583,1747643446175,-420.0,0.00013698,2]
[361617584,1747643446184,-420.0,0.00013698,2]
[361617585,1747643446194,-1241.5,0.00013698,2]
[361617586,1747643446204,-427.02,0.00013698,2]
[361617587,1747643446213,-500.0,0.00013698,2]
[361617588,1747643446223,-500.0,0.00013698,2]
[361617589,1747643446233,-726.9,0.00013698,2]
[361617590,1747643446244,-403.89446512,0.00013698,2]
[361617591,1747643446253,-420.0,0.00013698,2]
[361617592,1747643446263,-420.0,0.00013698,2]
[361617593,1747643446273,-420.0,0.00013698,2]
[361617594,1747643446282,-420.0,0.00013698,2]
[361617595,1747643446292,-1920.11,0.00013698,2]
[361617596,1747643446301,-876.58,0.00013698,2]
[361617597,1747643446310,-376.85686662,0.00013698,2]
[361617598,1747643446320,-420.0,0.00013698,2]
[361617599,1747643446330,-812.89,0.00013698,2]
[361617600,1747643446340,-3745.68,0.00013698,2]
[361617601,1747643446349,-7778.79,0.00013698,2]
[361617602,1747643446359,-647.5,0.00013698,2]
[361617603,1747643446368,-420.0,0.00013698,2]
[361617604,1747643446379,-500.0,0.00013698,2]
[361617605,1747643446388,-1244.8,0.00013698,2]
[361617606,1747643446398,-1181.75,0.00013698,2]
[361617607,1747643446408,-431.38,0.00013698,2]
[361617608,1747643446418,-1153.15,0.00013698,2]
[361617609,1747643446635,-496.25,0.00013698,2]
[361617610,1747643446646,-420.0,0.00013698,2]
[361617611,1747643446658,-420.0,0.00013698,2]
[361617612,1747643446668,-420.0,0.00013698,2]
[361617613,1747643446678,-420.0,0.00013698,2]
[361617614,1747643446687,-2514.46,0.00013698,2]
[361617615,1747643446698,-402.26097507,0.00013698,2]
[361617616,1747643446708,-2519.19,0.00013698,2]
[361617617,1747643446718,-1408.82,0.00013698,2]
[361617618,1747643446728,-420.0,0.00013698,2]
[361617619,1747643446738,-441.75,0.00013698,2]
[361617620,1747643446748,-531.14,0.00013698,2]
[361617621,1747643446758,-1060.88,0.00013698,2]
[361617622,1747643446768,-3987.06,0.00013698,2]
[361617623,1747643446778,-420.0,0.00013698,2]
[361617624,1747643446789,-400.0,0.00013698,2]
[361617625,1747643446799,-26488.64,0.00013698,2]
[361617626,1747643446810,-583.31,0.00013698,2]
[361617627,1747643446821,-169218.1,0.00013698,2]
[361617628,1747643446832,-420.0,0.00013698,2]
[361617629,1747643446843,-600.34,0.00013698,2]
[361617630,1747643446854,-400.0,0.00013698,2]
[361617631,1747643446863,-584.16,0.00013698,2]
[361617632,1747643446873,-420.0,0.00013698,2]
[361617633,1747643446884,-664.93,0.00013698,2]
[361617634,1747643446894,-8585.62,0.00013698,2]
[361617635,1747643446905,-420.0,0.00013698,2]
[361617636,1747643446917,-320.0,0.00013698,2]
[361617637,1747643446926,-3077.96,0.00013698,2]
[361617638,1747643446937,-420.0,0.00013698,2]
[361617639,1747643446947,-420.0,0.00013698,2]
[361617640,1747643446958,-420.0,0.00013698,2]
[361617641,1747643446968,-1330.32,0.00013698,2]
[361617642,1747643446977,-788.24,0.00013698,2]
[361617643,1747643446987,-420.0,0.00013698,2]
[361617644,1747643446997,-192.21947831,0.00013698,2]
[361617645,1747643447006,-1434.67,0.00013698,2]
[361617646,1747643447017,-13736.68,0.00013698,2]
[361617647,1747643447027,-465.86,0.00013698,2]
[361617648,1747643447036,-575.38,0.00013698,2]
[361617649,1747643447046,-569.93,0.00013698,2]
[361617650,1747643447056,-196.46299033,0.00013698,2]
[361617651,1747643447066,-1109.51,0.00013698,2]
[361617652,1747643447076,-782.44,0.00013698,2]
[361617653,1747643447085,-699.13,0.00013698,2]
[361617654,1747643447095,-405.79344764,0.00013698,2]
[361617655,1747643447105,-993.75,0.00013698,2]
[361617656,1747643447115,-924.97,0.00013698,2]
[361617657,1747643447125,-453.36,0.00013698,2]
[361617658,1747643447135,-420.0,0.00013698,2]
[361617659,1747643447144,-420.0,0.00013698,2]